Cogmind - Beta 16 @@@ ROGUE MODE // 2026.01.02 @ 06:47:47 Player: rootmos Result: Destroyed by G-47 Trooper with Particle Gun Performance ------------- Evolutions (3) 1500 Regions Visited (4) 800 Robots Destroyed (88) 440 Value Destroyed (3232) 3232 Prototype IDs (4) 80 Alien Tech Used (0) 0 Bonus (178) 178 TOTAL SCORE: 6230 Bonus ------- High Alert Combat Kills 178 Cogmind --------- Core Integrity 0/700 Matter 235/300 Energy 317/340 System Corruption 16% Temperature Cool (9) Movement Treading (240) Ox1 Location -7/Factory Parts ------- > --- POWER (2) -------- Improved Deuterium Engine Micro Nuclear Core > --- PROPULSION (4) --- Medium Treads Medium Treads Aluminum Leg Improved Titanium Leg > --- UTILITY (5) ------ Advanced Heat Sink Medium Storage Unit Improved Signal Interpreter Improved Targeting Computer Improved Light Armor Plating > --- WEAPON (2) ------- Heavy Ion Cannon Gauss Rifle > --- INVENTORY (10) --- Improved Heat Sink Improved Heat Sink Improved Heat Sink Targeting Computer Arc Projector Improved EM Pulse Cannon Plasma Cannon Gauss Rifle Improved Datajack Remote Datajack Peak State ------------ > --- POWER ------------ Improved Deuterium Engine Improved Deuterium Engine > --- PROPULSION ------- Advanced Treads Advanced Treads Aluminum Leg Improved Carbon-fiber Leg > --- UTILITY ---------- Improved Heat Sink Improved Heat Sink Medium Storage Unit Improved Signal Interpreter Energy Filter > --- WEAPON ----------- Cooled Particle Cannon Precision Assault Rifle > --- INVENTORY -------- Improved Deuterium Engine Improved Heat Sink Advanced Heat Sink Arc Projector Improved EM Pulse Cannon Plasma Cannon Heavy Ion Cannon Gauss Rifle Gauss Rifle Remote Datajack [Rating: 47] Favorites ----------- Power Improved Deuterium Engine Engine Improved Deuterium Engine Power Core Micro Nuclear Core Propulsion Aluminum Leg Treads Advanced Treads Leg Aluminum Leg Wheel Subdweller Monowheel Hover Unit Hover Unit Flight Unit Flight Unit Utility Medium Storage Unit Device Improved Heat Sink Storage Medium Storage Unit Processor Improved Signal Interpreter Protection Improved Light Armor Plating Weapon Cooled Particle Cannon Energy Gun Gatling Laser Energy Cannon Cooled Particle Cannon Ballistic Gun Gauss Rifle Ballistic Cannon Gauss Cannon Special Weapon Remote Datajack Special Melee Weapon Improved Datajack Build | -11 -10 -10 -8 -7 ------- Run | Yrd Mat Sub Mat Fac Slots Evolved 6 | . . . 4 2 Power 1 | . . . . 1 Propulsion 2 | . . . 2 . Utility 3 | . . . 2 1 Weapon . | . . . . . Parts Attached 112 | 1 10 10 29 62 Power 25 | . 4 2 3 16 Engine 19 | . 4 2 3 10 Core 6 | . . . . 6 Reactor . | . . . . . Propulsion 26 | . 1 2 8 15 Treads 11 | . . . 3 8 Leg 10 | . 1 1 2 6 Wheel 1 | . . 1 . . Hover 1 | . . . 1 . Flight 3 | . . . 2 1 Utility 29 | . 3 1 9 16 Device 15 | . . 1 3 11 Storage 4 | . 3 . . 1 Processor 2 | . . . 1 1 Hackware . | . . . . . Protection 8 | . . . 5 3 Artifact . | . . . . . Weapon 32 | 1 2 5 9 15 Energy Gun 11 | . 1 2 4 4 Energy Cannon 4 | . . . 1 3 Ballistic Gun 13 | 1 1 2 3 6 Ballistic Cannon 2 | . . 1 . 1 Launcher . | . . . . . Special Weapon 1 | . . . . 1 Impact Weapon . | . . . . . Slashing Weapon . | . . . . . Piercing Weapon . | . . . . . Special Melee Weapon 1 | . . . 1 . Unidentified Prototypes 4 | . . . 1 3 Parts Lost 45 | . . 8 15 22 Power 8 | . . 1 3 4 Propulsion 15 | . . 3 3 9 Utility 9 | . . . 3 6 Weapon 13 | . . 4 6 3 Highest Loss Streak 13 | . . 4 13 4 To Critical Strikes 1 | . . . 1 . Average Backups 9 | 3 8 6 8 9 Power 1 | 1 2 2 1 . Propulsion . | 1 . . . . Utility 2 | . 1 1 2 2 Weapon 4 | 1 4 2 2 5 Tool/Special . | . . . . . Unused Backups 30 | . 7 1 5 17 Power 3 | . 1 . 2 . Propulsion 2 | . 1 1 . . Utility 9 | . 1 . 2 6 Weapon 14 | . 4 . 1 9 Tool/Special 2 | . . . . 2 Average Slot Usage (%) 90 | . 90 81 75 92 Engine 12 | . 14 14 8 12 Core 1 | . . . . 2 Treads 7 | . . . 5 8 Leg 15 | . 28 9 7 15 Device 10 | . . 4 4 13 Storage 8 | . 19 23 9 7 Processor 6 | . . . 3 8 Protection 6 | . . . 10 6 Energy Gun 4 | . 14 14 8 2 Energy Cannon 3 | . . . . 4 Ballistic Gun 6 | . 14 8 6 5 Ballistic Cannon 1 | . . 4 1 1 Peak Build Rating 47 | 6 10 10 28 47 Average Rating 33 | 6 8 7 17 40 On Entrance 11 | 6 6 10 10 23 Avg Prop Armor Cover (%) 8 | . . . 8 8 Naked Turns . | . . . . . Heaviest Build 51 | 13 23 23 30 51 Greatest Support 70 | 20 20 20 40 70 Greatest Overweight (x) 7 | . 1 7 6 4 Average Overweight (x) . | . . 2 . . Largest Inventory Capacity 20 | 8 10 10 10 20 Average Capacity 9 | 8 9 10 10 10 Most Carried 10 | 5 10 10 10 10 Average Carried 9 | 2 8 6 8 9 Final Capacity 10 | 8 10 10 10 10 Final Carried 10 | 2 10 6 10 10 Class Distribution -------------------- 54% | Mutant 45% | Scavenger-Mutant Dominant Class ---------------- Mutant | -10/Materials Mutant | -10/Subcaves Mutant | -8/Materials Scavenger-Mutant | -7/Factory Resources | -11 -10 -10 -8 -7 ----------- Run | Yrd Mat Sub Mat Fac Matter Collected 2485 | 210 173 117 352 1633 Remotely . | . . . . . Salvage Created 3448 | . 404 114 557 2373 Parts 188 | . 28 6 34 120 Haulers Intercepted . | . . . . . Recyclers Shooed . | . . . . . Parts Field Recycled . | . . . . . Retrieved Matter . | . . . . . Parts Self-Destructed 4 | . . 4 . . Prevented . | . . . . . Parts Restored . | . . . . . Kills | -11 -10 -10 -8 -7 ------- Run | Yrd Mat Sub Mat Fac Combat Hostiles Destroyed 77 | . 14 4 13 46 Guns 59 | . 14 4 10 31 Cannons 17 | . . . 2 15 AOE 1 | . . . 1 . Classes Destroyed 15 | . 3 2 3 7 Worker 3 | . 1 . . 2 Builder 1 | . . . . 1 Tunneler 1 | . . . . 1 Recycler 3 | . . . 1 2 Operator 1 | . . . . 1 Turret 1 | . . 1 . . Watcher 1 | . . . . 1 Swarmer 20 | . 6 3 5 6 Grunt 31 | . 8 . 4 19 Brawler 1 | . . . 1 . Duelist 1 | . . . . 1 Sentry 10 | . . . 3 7 Hunter 2 | . . . . 2 Programmer 11 | . . . . 11 Subdweller 1 | . . 1 . . Best Kill Streak 5 | . 4 2 5 5 Combat Bots Only 5 | . 4 2 4 5 Max Kills in Single Turn 2 | . 1 2 2 1 Gunslinging . | . . . . . Exploded 1 | . . . 1 . Melee . | . . . . . Uniques/NPCs Destroyed . | . . . . . Combat | -11 -10 -10 -8 -7 -------- Run | Yrd Mat Sub Mat Fac Hostile Shots Fired 920 | . 72 103 200 545 Missed 275 | . 25 36 41 173 Hits 645 | . 47 67 159 372 Melee 4 | . . . 2 2 Projectile 641 | . 47 67 157 370 Critical Strikes 20 | . 1 1 4 14 Part Disruptions 1 | . . . . 1 Damage Taken 7443 | . 441 773 1766 4463 Core 1403 | . 50 179 460 714 Absorbed by Shields 304 | . . . . 304 Redirected to Shielding 50 | . . . . 50 Core Remaining (%) 41 | 100 . 8 16 . Volleys Fired 249 | . 32 20 27 170 Largest 2 | . 2 2 2 2 Hottest 120 | . 88 88 110 120 Shots Fired 468 | . 58 37 46 327 Gun 316 | . 58 37 40 181 Cannon 150 | . . . 6 144 Launcher . | . . . . . Special 2 | . . . . 2 Kinetic 222 | . 26 17 15 164 Thermal 211 | . 32 13 5 161 Explosive . | . . . . . Electromagnetic 33 | . . 7 26 . Robot Hit Streak 15 | . 8 9 15 15 Robot Miss Streak 5 | . 5 3 4 5 Penetration Max 1 | . . . . 1 Secondary Targets 5 | . 1 2 . 2 Max Gunslinging Chain 1 | . 1 1 . 1 Shots Hit Robots 305 | . 31 23 38 213 Core Hits 169 | . 22 9 24 114 Critical Kills 2 | . . . . 2 Critical Parts Destroyed 1 | . . . . 1 Critical Strikes 8 | . 1 . . 7 Burn 1 | . 1 . . . Meltdown 1 | . . . . 1 Destroy 2 | . . . . 2 Blast 4 | . . . . 4 Melee Attacks 2 | . . . 2 . Impact . | . . . . . Slashing . | . . . . . Piercing . | . . . . . Sneak Attacks 1 | . . . 1 . Combat Hostiles . | . . . . . Follow-up Attacks . | . . . . . Damage Inflicted 7094 | . 461 438 986 5209 Guns 4528 | . 461 438 644 2985 Cannons 2243 | . . . 38 2205 Explosions 300 | . . . 300 . Melee . | . . . . . Ramming 23 | . . . 4 19 Kinetic 2987 | . 219 237 197 2334 Thermal 3558 | . 242 122 338 2856 Explosive . | . . . . . Electromagnetic 526 | . . 79 447 . Impact . | . . . . . Slashing . | . . . . . Piercing . | . . . . . Highest Corruption 16 | . . . . 16 Average Corruption 9 | . . . . 9 Corruption Purged . | . . . . . Corruption Blocked . | . . . . . Effects 179 | . . . . 179 Message Errors 45 | . . . . 45 Matter Fused 40 | . . . . 40 Heat Flow Errors 33 | . . . . 33 Energy Discharges 17 | . . . . 17 Parts Rejected 1 | . . . . 1 Parts Fused 1 | . . . . 1 Data Loss (minor) 21 | . . . . 21 Data Loss (major) 2 | . . . . 2 Misfires 8 | . . . . 8 Alerts 3 | . . . . 3 Weapon Failures 8 | . . . . 8 Overload Shots . | . . . . . Overflow Damage 44 | . . . 22 22 Projectiles 22 | . . . . 22 Explosions 22 | . . . 22 . Melee . | . . . . . Knockbacks 4 | . . . . 4 Impact . | . . . . . Kinetic 4 | . . . . 4 Secondary . | . . . . . Self-Inflicted Damage 8 | . . . 8 . Shots 1 | . . . 1 . Rammed 5 | . . . 1 4 Targets Rammed 5 | . . . 1 4 Kicked . | . . . . . Crushed . | . . . . . Highest Temperature 251 | . 189 . 156 251 Average Temperature 74 | . 58 . 41 87 Received Heat Transfer 1987 | . 93 186 468 1240 Siege Activations . | . . . . . Martial Activations . | . . . . . Shielding Activations . | . . . . . Robots Disrupted . | . . . . . Combat Hostiles . | . . . . . Robots Corrupted . | . . . . . Combat Hostiles . | . . . . . Parts Fried 1 | . . . 1 . Impact Corruptions . | . . . . . Robots Melted 1 | . . . . 1 Combat Hostiles . | . . . . . Parts Melted 6 | . . . . 6 Heat Transferred 6132 | . 703 273 424 4732 Parts Sabotaged . | . . . . . Parts Stolen . | . . . . . Parts Stripped . | . . . . . Power Chain Reactions 3 | . . . 3 . Alert | -11 -10 -10 -8 -7 ------- Run | Yrd Mat Sub Mat Fac Maximum Alert Level 3 | . . . . 3 Low Security (%) 62 | 100 100 . 100 50 Level 1 19 | . . . . 25 Level 2 12 | . . . . 15 Level 3 6 | . . . . 8 Level 4 . | . . . . . Level 5 . | . . . . . High Security . | . . . . . Max Security . | . . . . . Peak Influence 714 | . 189 . 96 714 Initial 38 | . . . 38 27 Average 200 | . 94 . 21 245 Influence Increases 2358 | . 394 200 351 1413 Destroy 0b10 Robot/C 1540 | . 280 80 260 920 Destroy 0b10 Robot/NC 50 | . 5 . 5 40 Destroy Leader 402 | . 70 . 50 282 Successful Hack 51 | . 9 . . 42 Disable Machine 60 | . 15 . 30 15 Destroy Structure 30 | . . . 6 24 Lose Combat Pursuer 225 | . 15 120 . 90 Influence Decreases 1614 | . 347 173 365 729 Entered New Map 92 | . . 23 36 33 Time Decay 1139 | . 347 70 236 486 Lost Part 383 | . . 80 93 210 Squads Dispatched 27 | . 4 . . 23 Investigation 6 | . 2 . . 4 Extermination 11 | . . . . 11 Reinforcement 5 | . 2 . . 3 Assault . | . . . . . Garrison 5 | . . . . 5 Intercept . | . . . . . Searches Triggered . | . . . . . Construction Impeded 2 | . . . . 2 Haulers Reinforced . | . . . . . Active Scanning Responses . | . . . . . Cargo Convoy Interrupts . | . . . . . Stealth | -11 -10 -10 -8 -7 --------- Run | Yrd Mat Sub Mat Fac Distress Signals 10 | . 1 . 4 5 Communications Jammed . | . . . . . Distress Signals . | . . . . . Times Spotted 145 | . 20 12 33 80 Peak Tracking Total 12 | . 3 6 12 6 Tactical Retreats 9 | . 1 3 . 5 Traps | -11 -10 -10 -8 -7 ------- Run | Yrd Mat Sub Mat Fac Traps Triggered 5 | . 2 . . 3 Indirectly . | . . . . . Trap Hack Attempts . | . . . . . Triggered . | . . . . . Disarmed . | . . . . . Reprogrammed . | . . . . . Reused . | . . . . . Traps Extracted . | . . . . . Installed . | . . . . . Triggered . | . . . . . Machines | -11 -10 -10 -8 -7 ---------- Run | Yrd Mat Sub Mat Fac Machines Disabled 4 | . 1 . 2 1 Max in Single Turn 1 | . 1 . 1 1 Garrison Access 1 | . . . . 1 Machines Repaired . | . . . . . Machines Dismantled . | . . . . . Machines Sabotaged . | . . . . . Overloaded Fab Kills . | . . . . . Hacking | -11 -10 -10 -8 -7 --------- Run | Yrd Mat Sub Mat Fac Machines Accessed 18 | . 3 . 4 11 Terminals 12 | . 3 . 3 6 Fabricators 1 | . . . . 1 Repair Stations . | . . . . . Recycling Units . | . . . . . Scanalyzers 3 | . . . 1 2 Garrison Access 2 | . . . . 2 Total Hacks 44 | . 8 . 11 25 Successful 19 | . 3 . 6 10 Failed 25 | . 5 . 5 15 Catastrophic 5 | . 1 . . 4 Database Lockouts . | . . . . . Manual 2 | . 2 . . . Terminals 27 | . 8 . 7 12 Fabricators 3 | . . . . 3 Repair Stations . | . . . . . Recycling Units . | . . . . . Scanalyzers 10 | . . . 4 6 Garrison Access 4 | . . . . 4 Terminal Hacks 11 | . 3 . 3 5 Record 2 | . 2 . . . Robot Analysis 1 | . 1 . . . Open DSF 1 | . . . . 1 Locate Traps 6 | . . . 2 4 Maintenance Status 1 | . . . 1 . Fabricator Hacks 3 | . . . . 3 Network Status 3 | . . . . 3 Repair Station Hacks . | . . . . . Recycling Unit Hacks . | . . . . . Scanalyzer 4 | . . . 3 1 Retrieve Study 4 | . . . 3 1 Garrison Access Hacks 1 | . . . . 1 Seal Access 1 | . . . . 1 Unauthorized Hacks . | . . . . . Terminals . | . . . . . Fabricators . | . . . . . Repair Stations . | . . . . . Recycling Units . | . . . . . Scanalyzers . | . . . . . Garrison Access . | . . . . . Data Cores Recovered . | . . . . . Used . | . . . . . Hacking Detections 15 | . 3 . 3 9 Full Trace Events 8 | . 2 . 2 4 Feedback Events . | . . . . . Feedback Blocked . | . . . . . Robot Schematics Acquired . | . . . . . Robots Built . | . . . . . Authchips . | . . . . . Time . | . . . . . Total Robot Build Rating . | . . . . . Part Schematics Acquired . | . . . . . Parts Built . | . . . . . Authchips . | . . . . . Time . | . . . . . Total Part Build Rating . | . . . . . Part Studies Acquired 4 | . . . 3 1 Parts Repaired . | . . . . . Time . | . . . . . Parts Recycled . | . . . . . Recycled Matter . | . . . . . Retrieved Matter . | . . . . . Retrieved Components . | . . . . . Parts Scanalyzed . | . . . . . Part Schematics Acquired . | . . . . . Parts Damaged . | . . . . . Bothacking | -11 -10 -10 -8 -7 ------------ Run | Yrd Mat Sub Mat Fac Used RIF Installer . | . . . . . Robots Hacked 2 | . . . 1 1 Non-combat 1 | . . . . 1 Combat 1 | . . . 1 . Robot Hacks Applied 3 | . . . 1 2 parse_system 2 | . . . 1 1 find_chute 1 | . . . . 1 Relay Couplers Released . | . . . . . Fabnet Peak Effective % . | . . . . . Robots Rewired . | . . . . . Allies Hacked . | . . . . . Hacks Repelled . | . . . . . Allies | -11 -10 -10 -8 -7 -------- Run | Yrd Mat Sub Mat Fac Total Allies . | . . . . . Largest Group . | . . . . . Highest-Rated Group . | . . . . . Highest-Rated Ally . | . . . . . Total Orders . | . . . . . Ally Attacks . | . . . . . Total Damage . | . . . . . Kills . | . . . . . Allies Corrupted . | . . . . . Allies Melted . | . . . . . Intel | -11 -10 -10 -8 -7 ------- Run | Yrd Mat Sub Mat Fac Active Infowar (turns) 221 | . . 52 169 . Optics 147 | . . 52 95 . Terrain 75 | . . . 75 . Robot Analysis Total 1 | . 1 . . . Derelict Logs Recovered . | . . . . . Drone Launches . | . . . . . Drone Recoveries . | . . . . . Exploration | -11 -10 -10 -8 -7 ------------- Run | Yrd Mat Sub Mat Fac Turns Passed 7674 | 10 835 154 918 5757 Spaces Moved 3791 | 6 430 35 438 2882 Core 23 | . . 10 13 . Treads 1639 | . . . 194 1445 Legs 1957 | 6 430 13 71 1437 Wheels 124 | . . 12 112 . Hover . | . . . . . Flight 48 | . . . 48 . Fastest Speed 100 | 120 120 120 100 110 Average Speed 172 | 120 164 242 168 174 Slowest Speed 400 | 120 190 400 350 385 Overloaded Moves . | . . . . . Propulsion Burnouts . | . . . . . Robots Hopped . | . . . . . Potential Cave-ins . | . . . . . Cave-ins Triggered . | . . . . . Exploration Rate (%) 30 | 2 51 4 37 59 Regions Visited 4 Branch Regions 1 Pre-discovered Areas . | . . . . . Known Exits Taken 1 | . . . 1 . Unknown Exits Taken 3 | 1 1 1 . . Scrap Searched . | . . . . . Spaces Dug . | . . . . . Terrain Destroyed 27 | . . . 7 20 Melee . | . . . . . Projectile 20 | . . . . 20 AOE 7 | . . . 7 . Terrain Rammed . | . . . . . Walls Destroyed . | . . . . . Machines Disabled . | . . . . . Actions | -11 -10 -10 -8 -7 --------- Run | Yrd Mat Sub Mat Fac Total 4445 | 11 507 65 571 3291 Wait 137 | . 13 . 29 95 Move 3787 | 5 429 34 437 2882 Hop . | . . . . . Pick Up 51 | . 11 1 19 20 Fast Attach 41 | . 3 1 14 23 Attach 22 | 1 . 6 8 7 Detach 4 | 1 1 . 1 1 Swap 72 | . 7 3 15 47 Drop 75 | 4 11 . 18 42 Fire 249 | . 32 20 27 170 Melee 2 | . . . 2 . Ram . | . . . . . Kick . | . . . . . Crush 5 | . . . 1 4 Escape Stasis . | . . . . . Rewire . | . . . . . Trap . | . . . . . Miscellaneous . | . . . . . Route ------- -11/Scrapyard -10/Materials (discovered 4 exits: [*Mat x2] / [*Min] / [*Sub]) -10/Subcaves (discovered 2 exits: *Mat / [*Rec]) -8/Materials (discovered 2 exits: *Fac x2) -7/Factory (discovered 3 exits: *Fac x3) History --------- Turn | Location | Event 5 | -11/Scrapyard | Discovered new exit (range 3) 11 | -11/Scrapyard | Entered Materials 299 | -10/Materials | Discovered new exit (range 14) 313 | -10/Materials | Build established: Mutant 623 | -10/Materials | Discovered new exit (range 6) 795 | -10/Materials | Discovered new exit (range 7) 826 | -10/Materials | Discovered new exit (range 11) 846 | -10/Materials | Entered Subcaves 846 | -10/Subcaves | Discovered new exit (range 11) 878 | -10/Subcaves | Core integrity fell below 50% 898 | -10/Subcaves | Lost 4 parts (2n2w) 929 | -10/Subcaves | Core integrity fell below 20% 952 | -10/Subcaves | Lost 4 parts (1p1n2w) 960 | -10/Subcaves | Discovered new exit (range 10) 1000 | -10/Subcaves | Entered Materials 1000 | -8/Materials | Evolved 4 slots: Propulsion x2, Utility x2 1180 | -8/Materials | Core integrity fell below 50% 1218 | -8/Materials | Core integrity fell below 20% 1246 | -8/Materials | Lost 13 parts (3p2n3u5w) 1558 | -8/Materials | Build established: Scavenger-Mutant 1615 | -8/Materials | Discovered new exit (range 13) 1683 | -8/Materials | Identified exit to Factory 1891 | -8/Materials | Discovered exit to Factory (range 16) 1918 | -8/Materials | Entered Factory 1918 | -7/Factory | Evolved 2 slots: Power x1, Utility x1 2022 | -7/Factory | Discovered new exit (range 8) 2050 | -7/Factory | Identified exit to Factory 2426 | -7/Factory | Build established: Mutant 2515 | -7/Factory | Garrison activated, responded to threat 3452 | -7/Factory | Build established: Scavenger-Mutant 3537 | -7/Factory | Discovered exit to Factory (range 9) 4772 | -7/Factory | Core integrity fell below 50% 5506 | -7/Factory | System corruption reached 10% 5875 | -7/Factory | Build established: Mutant 6187 | -7/Factory | Garrison activated, responded to threat 6246 | -7/Factory | Lost 4 parts (2n2u) 6536 | -7/Factory | Core integrity fell below 20% 6582 | -7/Factory | Lost 4 parts (1n1u2w) 6666 | -7/Factory | Lost 3 parts (1p2n) 7652 | -7/Factory | Discovered exit to Factory (range 14) 7675 | -7/Factory | Destroyed by G-47 Trooper with Particle Gun Last Messages --------------- 07539_ Slammed into R-06 Scavenger. 07541_ Connecting with DSF Access... 07585_ System corrupted: Matter fused (-10). 07607_ System corrupted: Energy discharge (-112). 07612_ ALERT: Potential suspicious activity detected, Programmers report to Factory Zone 9K. 07627_ System corrupted: Matter fused (-6). 07631_ O-24 Administrator: "IFF HANDSHAKE FAILED. SECURING TERMINAL." 07637_ Slammed into O-24 Administrator. 07639_ O-24 Administrator uses terminal to summon reinforcements. 07639_ ALERT: Hostiles spotted, dispatching reinforcements to Terminal F008. 07639_ O-24 Administrator locks terminal. 07643_ ZOPZL7F2L21H&X,=|T4K 07652_ EXIT=FOUND: FACTORY 07659_ R#TUHV9K5XRWEK76O4|22%